Cogmind - Beta 11 @@@ ROGUE MODE // 2022.04.09 @ 16:18:18 Player: Rainynight Result: Destroyed by Y-45 Defender with Beam Rifle Performance ------------- Evolutions (2) 1000 Regions Visited (5) 1000 Robots Destroyed (11) 55 Value Destroyed (328) 328 Prototype IDs (1) 20 Alien Tech Used (0) 0 Bonus (54) 54 TOTAL SCORE: 2457 Bonus ------- Follower Combat Kills 54 Cogmind --------- Core Integrity 0/550 Matter 300/300 Energy 160/160 System Corruption 0% Temperature Cool (9) Movement Walking (120) Location -8/Materials Parts ------- > --- POWER (2) -------- Light Nuclear Core > --- PROPULSION (5) --- Aluminum Leg Flight Unit Flight Unit > --- UTILITY (2) ------ (None) > --- WEAPON (2) ------- (None) > --- INVENTORY (5) ---- Flight Unit Medium Storage Unit Grenade Launcher Peak State ------------ > --- POWER ------------ Ion Engine > --- PROPULSION ------- Aluminum Leg Aluminum Leg > --- UTILITY ---------- Bomb Drone Bay > --- WEAPON ----------- Light Assault Rifle Light Assault Rifle > --- INVENTORY -------- Ion Engine Light Treads Light Treads Light Armor Plating Assault Rifle [Rating: 19] Favorites ----------- Power Ion Engine Engine Ion Engine Power Core Light Nuclear Core Propulsion Flight Unit Leg Aluminum Leg Flight Unit Flight Unit Utility Medium Storage Unit Device Seismic Detector Storage Medium Storage Unit Protection Light Armor Plating Weapon Light Assault Rifle Ballistic Gun Light Assault Rifle Launcher Grenade Launcher Slashing Weapon Axe Build | -11 -10 -10 -9 -9 -8 ------- Run | Scr Mat Min Mat Min Mat Slots Evolved 4 | . . . 2 . 2 Power 1 | . . . . . 1 Propulsion 3 | . . . 2 . 1 Utility . | . . . . . . Weapon . | . . . . . . Parts Attached 28 | . 1 2 9 1 15 Power 3 | . . . 1 . 2 Engine . | . . . . . . Core 3 | . . . 1 . 2 Reactor . | . . . . . . Propulsion 17 | . . . 6 1 10 Treads . | . . . . . . Leg 1 | . . . . . 1 Wheel . | . . . . . . Hover . | . . . . . . Flight 16 | . . . 6 1 9 Utility 5 | . 1 2 1 . 1 Device 2 | . . 1 1 . . Storage 2 | . . 1 . . 1 Processor . | . . . . . . Hackware . | . . . . . . Protection 1 | . 1 . . . . Artifact . | . . . . . . Weapon 3 | . . . 1 . 2 Energy Gun . | . . . . . . Energy Cannon . | . . . . . . Ballistic Gun . | . . . . . . Ballistic Cannon . | . . . . . . Launcher 1 | . . . . . 1 Special Weapon . | . . . . . . Impact Weapon . | . . . . . . Slashing Weapon 2 | . . . 1 . 1 Piercing Weapon . | . . . . . . Special Melee Weapon . | . . . . . . Unidentified Prototypes 1 | . . 1 . . . Parts Lost 12 | . . . 1 3 8 Power . | . . . . . . Propulsion 10 | . . . 1 3 6 Utility 1 | . . . . . 1 Weapon 1 | . . . . . 1 Highest Loss Streak 4 | . . . 1 4 4 To Critical Strikes . | . . . . . . Average Slot Usage (%) 72 | . 88 86 71 77 42 Engine 8 | . 14 14 2 . . Core 2 | . . . 8 11 4 Leg 16 | . 28 28 . . . Flight 13 | . . . 44 44 26 Device 2 | . . 2 1 11 3 Storage 9 | . 14 10 11 11 4 Protection 1 | . 3 1 . . . Ballistic Gun 16 | . 28 28 3 . . Naked Turns 4 | . . . . . 4 Heaviest Build 17 | 12 15 17 16 16 16 Greatest Support 20 | 20 20 20 16 16 16 Greatest Overweight (x) 1 | . . . . 1 . Average Overweight (x) . | . . . . . . Largest Inventory Capacity 10 | 8 8 10 10 10 10 Average Capacity 8 | 8 8 8 10 10 7 Most Carried 10 | 5 5 10 10 8 8 Average Carried 6 | 5 4 6 9 7 5 Final Capacity 10 | 8 8 10 10 10 5 Final Carried 10 | 4 5 10 8 7 3 Class Distribution -------------------- 67% | Mutant 14% | Scavenger-Sprinter 12% | Sprinter 4% | Scavenger-Mutant Dominant Class ---------------- Mutant | -10/Materials Mutant | -10/Mines Scavenger-Sprinter | -9/Materials Scavenger-Sprinter | -9/Mines Sprinter | -8/Materials Resources | -11 -10 -10 -9 -9 -8 ----------- Run | Scr Mat Min Mat Min Mat Matter Collected 593 | 200 . 43 70 . 280 Remotely . | . . . . . . Salvage Created 361 | . . 125 . . 236 Parts 14 | . . 1 . . 13 Haulers Intercepted . | . . . . . . Recyclers Shooed 1 | . . 1 . . . Parts Field Recycled . | . . . . . . Retrieved Matter . | . . . . . . Parts Self-Destructed . | . . . . . . Prevented . | . . . . . . Kills | -11 -10 -10 -9 -9 -8 ------- Run | Scr Mat Min Mat Min Mat Combat Hostiles Destroyed 9 | . . . . . 9 Melee 5 | . . . . . 5 AOE 4 | . . . . . 4 Classes Destroyed 5 | . . 2 . . 3 Worker 1 | . . 1 . . . Recycler 1 | . . 1 . . . Swarmer 3 | . . . . . 3 Grunt 4 | . . . . . 4 Sentry 2 | . . . . . 2 Best Kill Streak 5 | . . 2 . . 5 Combat Bots Only 5 | . . . . . 5 Max Kills in Single Turn 1 | . . 1 . . 1 Gunslinging . | . . . . . . Exploded 1 | . . . . . 1 Melee 1 | . . . . . 1 Uniques/NPCs Destroyed . | . . . . . . Combat | -11 -10 -10 -9 -9 -8 -------- Run | Scr Mat Min Mat Min Mat Damage Taken 1090 | . . . 128 55 907 Core 601 | . . . 29 10 562 Absorbed by Shields . | . . . . . . Core Remaining (%) 96 | 100 . 100 . 90 . Volleys Fired 23 | . . 9 . . 14 Largest 2 | . . 2 . . 1 Hottest 40 | . . 40 . . 30 Shots Fired 32 | . . 18 . . 14 Gun 18 | . . 18 . . . Cannon . | . . . . . . Launcher 14 | . . . . . 14 Special . | . . . . . . Kinetic 18 | . . 18 . . . Thermal . | . . . . . . Explosive 14 | . . . . . 14 Electromagnetic . | . . . . . . Robot Hit Streak 7 | . . 6 . . 7 Robot Miss Streak 1 | . . 1 . . 1 Penetration Max . | . . . . . . Secondary Targets . | . . . . . . Shots Hit Robots 29 | . . 13 . . 16 Core Hits 23 | . . 5 . . 18 Critical Kills . | . . . . . . Critical Parts Destroyed . | . . . . . . Critical Strikes . | . . . . . . Melee Attacks 21 | . . . . . 21 Impact . | . . . . . . Slashing 21 | . . . . . 21 Piercing . | . . . . . . Sneak Attacks . | . . . . . . Combat Hostiles . | . . . . . . Follow-up Attacks . | . . . . . . Damage Inflicted 893 | . . 115 . . 778 Guns 112 | . . 112 . . . Cannons . | . . . . . . Explosions 334 | . . . . . 334 Melee 441 | . . . . . 441 Ramming 6 | . . 3 . . 3 Kinetic 112 | . . 112 . . . Thermal . | . . . . . . Explosive 334 | . . . . . 334 Electromagnetic . | . . . . . . Impact . | . . . . . . Slashing 441 | . . . . . 441 Piercing . | . . . . . . Highest Corruption . | . . . . . . Average Corruption . | . . . . . . Corruption Purged . | . . . . . . Corruption Blocked . | . . . . . . Overload Shots . | . . . . . . Overflow Damage 19 | . . . . . 19 Projectiles . | . . . . . . Explosions . | . . . . . . Melee 19 | . . . . . 19 Knockbacks . | . . . . . . Impact . | . . . . . . Kinetic . | . . . . . . Secondary . | . . . . . . Self-Inflicted Damage . | . . . . . . Shots . | . . . . . . Rammed . | . . . . . . Targets Rammed 5 | . . 1 . . 4 Kicked 5 | . . 1 . . 4 Crushed . | . . . . . . Highest Temperature 29 | . . . 29 . 6 Average Temperature 14 | . . . 15 . 6 Received Heat Transfer 432 | . . . 57 33 342 Siege Activations . | . . . . . . Robots Corrupted . | . . . . . . Combat Hostiles . | . . . . . . Parts Fried . | . . . . . . Impact Corruptions . | . . . . . . Robots Melted . | . . . . . . Combat Hostiles . | . . . . . . Parts Melted . | . . . . . . Heat Transferred . | . . . . . . Parts Sabotaged . | . . . . . . Parts Stolen . | . . . . . . Parts Stripped . | . . . . . . Power Chain Reactions . | . . . . . . Missiles Intercepted . | . . . . . . Alert | -11 -10 -10 -9 -9 -8 ------- Run | Scr Mat Min Mat Min Mat Peak Influence 299 | . . 10 239 36 299 Initial 36 | . . . . 36 1 Average 59 | . . . 134 26 142 Maximum Alert Level 1 | . . . 1 . 1 Low Security (%) 85 | 100 100 100 75 100 61 Level 1 14 | . . . 24 . 38 Level 2 . | . . . . . . Level 3 . | . . . . . . Level 4 . | . . . . . . Level 5 . | . . . . . . High Security . | . . . . . . Max Security . | . . . . . . Squads Dispatched 3 | . . . 1 . 2 Investigation . | . . . . . . Extermination . | . . . . . . Reinforcement 3 | . . . 1 . 2 Assault . | . . . . . . Garrison . | . . . . . . Intercept . | . . . . . . Searches Triggered . | . . . . . . Construction Impeded . | . . . . . . Haulers Reinforced . | . . . . . . Active Scanning Responses . | . . . . . . Cargo Convoy Interrupts . | . . . . . . Stealth | -11 -10 -10 -9 -9 -8 --------- Run | Scr Mat Min Mat Min Mat Distress Signals 2 | . . . 2 . . Communications Jammed . | . . . . . . Distress Signals . | . . . . . . Times Spotted 48 | . . . 19 6 23 Peak Tracking Total 15 | . . . 15 6 9 Tactical Retreats 1 | . . . . . 1 Traps | -11 -10 -10 -9 -9 -8 ------- Run | Scr Mat Min Mat Min Mat Traps Triggered . | . . . . . . Indirectly . | . . . . . . Trap Hack Attempts . | . . . . . . Triggered . | . . . . . . Disarmed . | . . . . . . Reprogrammed . | . . . . . . Reused . | . . . . . . Traps Extracted . | . . . . . . Installed 4 | . . 4 . . . Triggered . | . . . . . . Machines | -11 -10 -10 -9 -9 -8 ---------- Run | Scr Mat Min Mat Min Mat Machines Disabled 1 | . . . . . 1 Max in Single Turn 1 | . . . . . 1 Machines Sabotaged . | . . . . . . Garrisons Compromised . | . . . . . . Overloaded Fab Kills . | . . . . . . Hacking | -11 -10 -10 -9 -9 -8 --------- Run | Scr Mat Min Mat Min Mat Machines Accessed 4 | . . 1 1 . 2 Terminals 3 | . . . 1 . 2 Fabricators . | . . . . . . Repair Stations . | . . . . . . Recycling Units . | . . . . . . Scanalyzers . | . . . . . . Garrison Access . | . . . . . . Total Hacks 8 | . . 1 4 . 3 Successful 2 | . . 1 1 . . Failed 6 | . . . 3 . 3 Catastrophic . | . . . . . . Database Lockouts . | . . . . . . Manual 3 | . . . . . 3 Terminals 7 | . . . 4 . 3 Fabricators . | . . . . . . Repair Stations . | . . . . . . Recycling Units . | . . . . . . Scanalyzers . | . . . . . . Garrison Access . | . . . . . . Terminal Hacks 2 | . . 1 1 . . Open Door 1 | . . 1 . . . Unreport Threat 1 | . . . 1 . . Fabricator Hacks . | . . . . . . Repair Station Hacks . | . . . . . . Recycling Unit Hacks . | . . . . . . Scanalyzer . | . . . . . . Garrison Access Hacks . | . . . . . . Unauthorized Hacks . | . . . . . . Terminals . | . . . . . . Fabricators . | . . . . . . Repair Stations . | . . . . . . Recycling Units . | . . . . . . Scanalyzers . | . . . . . . Garrison Access . | . . . . . . Data Cores Recovered . | . . . . . . Used . | . . . . . . Hacking Detections 1 | . . . . . 1 Full Trace Events . | . . . . . . Feedback Events . | . . . . . . Feedback Blocked . | . . . . . . Robot Schematics Acquired . | . . . . . . Robots Built . | . . . . . . Authchips . | . . . . . . Time . | . . . . . . Total Robot Build Rating . | . . . . . . Part Schematics Acquired . | . . . . . . Parts Built . | . . . . . . Authchips . | . . . . . . Time . | . . . . . . Total Part Build Rating . | . . . . . . Parts Repaired . | . . . . . . Time . | . . . . . . Parts Recycled . | . . . . . . Recycled Matter . | . . . . . . Retrieved Matter . | . . . . . . Retrieved Components . | . . . . . . Parts Scanalyzed . | . . . . . . Part Schematics Acquired . | . . . . . . Parts Damaged . | . . . . . . Bothacking | -11 -10 -10 -9 -9 -8 ------------ Run | Scr Mat Min Mat Min Mat Used RIF Installer . | . . . . . . Robots Hacked . | . . . . . . Non-combat . | . . . . . . Combat . | . . . . . . Robot Hacks Applied . | . . . . . . Relay Couplers Released . | . . . . . . Fabnet Peak Effective % . | . . . . . . Robots Rewired . | . . . . . . Allies Hacked . | . . . . . . Hacks Repelled . | . . . . . . Allies | -11 -10 -10 -9 -9 -8 -------- Run | Scr Mat Min Mat Min Mat Total Allies 1 | . . 1 . . . Largest Group 1 | . . 1 1 . . Highest-Rated Group 31 | . . 31 31 . . Highest-Rated Ally 31 | . . 31 31 . . Total Orders 1 | . . 1 . . . EXPLORE 1 | . . 1 . . . Ally Attacks 18 | . . 5 13 . . Total Damage 170 | . . . 170 . . Kills 5 | . . . 5 . . Allies Corrupted . | . . . . . . Allies Melted . | . . . . . . Intel | -11 -10 -10 -9 -9 -8 ------- Run | Scr Mat Min Mat Min Mat Robot Analysis Total . | . . . . . . Derelict Logs Recovered 3 | . . 2 . 1 . Drone Launches 16 | . . 16 . . . Drone Recoveries . | . . . . . . Exploration | -11 -10 -10 -9 -9 -8 ------------- Run | Scr Mat Min Mat Min Mat Turns Passed 1118 | 1 95 543 157 11 311 Spaces Moved 1131 | 1 78 337 370 23 322 Core 3 | . . . . . 3 Treads . | . . . . . . Legs 419 | 1 78 337 . . 3 Wheels . | . . . . . . Hover . | . . . . . . Flight 709 | . . . 370 23 316 Fastest Speed 31 | 120 120 120 31 31 31 Average Speed 65 | 120 120 120 31 45 35 Slowest Speed 120 | 120 120 120 31 117 120 Overloaded Moves . | . . . . . . Propulsion Burnouts . | . . . . . . Robots Hopped 18 | . . . 5 1 12 Cave-ins Triggered . | . . . . . . Exploration Rate (%) 32 | 2 24 94 42 11 24 Regions Visited 5 Branch Regions 2 Pre-discovered Areas 2 | . . 1 . 1 . Known Exits Taken . | . . . . . . Unknown Exits Taken 5 | 1 1 1 1 1 . Scrap Searched 2 | . . 2 . . . Spaces Dug 14 | . . . . . 14 Terrain Destroyed 71 | . . . . . 71 Melee . | . . . . . . Projectile . | . . . . . . AOE 71 | . . . . . 71 Terrain Rammed . | . . . . . . Walls Destroyed . | . . . . . . Machines Disabled . | . . . . . . Actions | -11 -10 -10 -9 -9 -8 --------- Run | Scr Mat Min Mat Min Mat Total 1437 | 2 79 461 413 22 460 Wait 195 | . . 101 14 . 80 Move 1093 | . 77 336 359 20 301 Hop 15 | . . . 5 1 9 Pick Up 19 | . 1 5 10 . 3 Fast Attach 13 | . 1 2 3 . 7 Attach 12 | . . . 3 1 8 Detach 10 | . . 1 2 . 7 Swap 3 | . . . 3 . . Drop 24 | 2 . 2 14 . 6 Fire 23 | . . 9 . . 14 Melee 21 | . . . . . 21 Ram . | . . . . . . Kick 5 | . . 1 . . 4 Crush . | . . . . . . Escape Stasis . | . . . . . . Rewire . | . . . . . . Trap 4 | . . 4 . . . Miscellaneous . | . . . . . . Route ------- -11/Scrapyard -10/Materials -10/Mines (discovered 2 exits: *Mat x2) -9/Materials -9/Mines -8/Materials (discovered 1 exit: [*Sto]) History --------- Turn | Location | Event 2 | -11/Scrapyard | Discovered new exit (range 0) 2 | -11/Scrapyard | Entered Materials 64 | -10/Materials | Discovered new exit (range 9) 97 | -10/Materials | Entered Mines 162 | -10/Mines | Found the Drone Emporium 168 | -10/Mines | Found Prototype Device 168 | -10/Mines | Identified Bomb Drone Bay 219 | -10/Mines | Discovered new exit (range 16) 229 | -10/Mines | Discovered new exit (range 26) 308 | -10/Mines | Build established: Mutant 406 | -10/Mines | Found a hidden stash of uninstalled traps 575 | -10/Mines | Learned Materials terminal intel 580 | -10/Mines | Received a Mining Laser from a helpful Derelict 581 | -10/Mines | Learned location of Zion (-6) 640 | -10/Mines | Entered Materials 640 | -9/Materials | Accompanied by 1 ally 640 | -9/Materials | Evolved 2 slots: Propulsion x2 641 | -9/Materials | Loaded intel: 12 terminal locations 796 | -9/Materials | Discovered new exit (range 5) 797 | -9/Materials | Entered Mines 802 | -9/Mines | Discovered new exit (range 9) 808 | -9/Mines | Entered Materials 808 | -8/Materials | Evolved 2 slots: Power x1, Propulsion x1 837 | -8/Materials | Lost 4 parts (4n) 1036 | -8/Materials | Core integrity fell below 50% 1090 | -8/Materials | Core integrity fell below 20% 1099 | -8/Materials | Lost 4 parts (3n1w) 1107 | -8/Materials | Discovered new exit (range 12) 1119 | -8/Materials | Destroyed by Y-45 Defender with Beam Rifle Last Messages --------------- 01067_ Acquired Flight Unit. 01068_ Flight Unit destroyed. 01077_ Acquired 10 matter. 01080_ Acquired Flight Unit. 01081_ Acquired 10 matter. 01083_ Acquired Aluminum Leg. 01085_ Acquired 10 matter. 01090_ T-07 Excavator destroyed. 01092_ K-01 Serf collects debris. 01107_ ALERT: Suspicious intruders detected, dispatching Cutter reinforcements to area. 01107_ EXIT=FOUND 01107_ C-17 Slicer destroyed. 01107_ C-17 Slicer knocked back. 01107_ Knocked back. 01110_ Flight Unit destroyed. 01113_ Kicked Y-45 Defender. 01113_ Flight Unit severed. 01115_ Acquired Flight Unit. 01116_ Kicked Y-45 Defender. Map ----- +----------------------------------------------------+ | ?????????????????????????????????????????????????? | | ?????????????????????????????????????????????????? | | ?????????????????????????????????????????????????? | | ?????????????????????????????????????????????????? | | ?????????????????????????????????????????????????? | | ?????????????????????????????????????????????????? | | ?????????????????????????????????????????????????? | | ?????????????????????????????????????????????????? | | ?????????????????????????????????????????????????? | | ?????????????????????????????????????????????????? | | ?????????????????????????????????????????????????? | | ?????????????????????????????????????????????????? | | ?????????????????????????????????????????????????? | | ?????????????????????????????????????????????????? | | ?????????????????????????????????????????????????? | | ?????????????????????????????????????????????????? | | ?????????????????????????????????????????????????? | | ?????????????????????????????????????????????????? | | ?????????????????????????????????????????????????? | | ?????????????????????????????????????????????????? | | ?????????????????????????????????????????????????? | | ?????????????????????????????????????????????????? | | ?????????????????????????????????????????????????? | | ???????????????????????#######???????????????????? | | ?????????????########### % #???????????????????? | | ?????????????# @% ##??????????????????? | | ?????????????# *cY #??????????????????? | | ?????????????# ^ %/ #??????????????????? | | ?????????????+ ####### ! #??????????????????? | | ?????????????#?????????## ##??????????????????? | | ????????????????????????# #???????????????????? | | ????????????????????????# #???????????????????? | | ????????????????????????## #???????????????????? | | ?????????????????????????# #?????????#########+# | | ???????????????H?????????## #?????????# | | ??????????????????????????#g##?????????# | | ??????????????????????????# #??????????# | | ??????????????????????????# #??????????# #### | | ??????????????????????????# #??????????# #??# | | ??????????????????????????# #??????????# #??# | | ?????????????????########## ############ #??# | | ???????????????# #??# | | ???????????????# #??# | | ???????????????# #??# | | ???????????????# #########################??# | | ??????????????????????????????????????????????# | | ??????????????????????????????????????????????# | | ??????????????????????????????????????????????# | | ??????????????????????????????????????????????# | | ??????????????????????????????????????????????# | +----------------------------------------------------+ Best States ------------- Heat Dissipation 31 Energy Generation 14 Energy Capacity 250 Matter Stores 300 Matter Capacity 300 Sight Range 16 Terrain Scan Density 10 Armor Coverage 150 Evasion (%) 63 Item Schematics ----------------- None Robot Schematics ------------------ None Fabricated ------------ Nothing Alien Tech Used ----------------- None Achievements -------------- None Challenges ------------ None Game ------ Seed SpectralStorageRay Manual? 0 Play Time 00:15:59 Cumulative 57.5 hours Start 2022.04.09 @ 16:04:05 End 2022.04.09 @ 16:18:18 Sessions 1 Manual Loads 0 Difficulty Rogue Special Mode None Game No. 60 Rogue 60 Adventurer 0 Explorer 0 Win Type - Total 0 Types 0/0/0/0/0/0/0/0/0 Lore% 43 Gallery% 46 Achievement% 36 Wizard Run 0 Options --------- ASCII 1 Keyboard 1 Movement Numpad Keybinds 0 Fullscreen 1 Font 18/X11 Map View 76x50 Tactical HUD 1 Map Filters NONE Filters NONE Steam 1 RUN: b0617b12-5f9b-4915-a038-fed8ec4ec8a0